Cogmind - Beta 17 @@@ ROGUE MODE // 2026.08.06 @ 13:46:54 Player: Floof Enjoyer Result: Destroyed by G-34 Mercenary with Small Laser Performance ------------- Evolutions (1) 500 Regions Visited (2) 400 Robots Destroyed (19) 95 Value Destroyed (440) 440 Prototype IDs (1) 20 Alien Tech Used (0) 0 Bonus (0) 0 TOTAL SCORE: 1455 Bonus ------- None Cogmind --------- Core Integrity 0/400 Matter 270/300 Energy 88/100 System Corruption 0% Temperature Cool (6) Movement Core (100) Ox1 Location -9/Materials Parts ------- > --- POWER (1) -------- (None) > --- PROPULSION (4) --- (None) > --- UTILITY (2) ------ Visual Processing Unit ECM Suite > --- WEAPON (2) ------- Advanced Beam Rifle Light Assault Rifle > --- INVENTORY (5) ---- Light Ion Engine Light Ion Engine Wheel Advanced Beam Rifle Advanced Beam Rifle Peak State ------------ > --- POWER ------------ Improved Ion Engine > --- PROPULSION ------- Improved Hover Unit Improved Hover Unit > --- UTILITY ---------- Visual Processing Unit ECM Suite > --- WEAPON ----------- Advanced Beam Rifle Light Assault Rifle > --- INVENTORY -------- Light Ion Engine EM Pulse Gun Advanced Beam Rifle Advanced Beam Rifle [Rating: 15] Favorites ----------- Power Improved Ion Engine Engine Improved Ion Engine Propulsion Compact Wheel Wheel Compact Wheel Hover Unit Improved Hover Unit Utility ECM Suite Device ECM Suite Processor Visual Processing Unit Weapon Light Assault Rifle Energy Gun Advanced Beam Rifle Ballistic Gun Light Assault Rifle Build | -11 -10 -9 ------- Run | Yrd Mat Mat Slots Evolved 2 | . . 2 Power . | . . . Propulsion 2 | . . 2 Utility . | . . . Weapon . | . . . Parts Attached 23 | 5 6 12 Power 4 | 1 1 2 Engine 4 | 1 1 2 Core . | . . . Reactor . | . . . Propulsion 8 | 2 2 4 Treads . | . . . Leg . | . . . Wheel 6 | 2 2 2 Hover 2 | . . 2 Flight . | . . . Utility 2 | . 2 . Device 1 | . 1 . Storage . | . . . Processor 1 | . 1 . Hackware . | . . . Protection . | . . . Artifact . | . . . Weapon 9 | 2 1 6 Energy Gun 5 | . . 5 Energy Cannon . | . . . Ballistic Gun 4 | 2 1 1 Ballistic Cannon . | . . . Launcher . | . . . Special Weapon . | . . . Impact Weapon . | . . . Slashing Weapon . | . . . Piercing Weapon . | . . . Special Melee Weapon . | . . . Unidentified Prototypes 1 | . . 1 Parts Lost 10 | . . 10 Power 2 | . . 2 Propulsion 5 | . . 5 Utility . | . . . Weapon 3 | . . 3 Highest Loss Streak 5 | . . 5 To Critical Strikes . | . . . Average Backups 3 | 1 2 3 Power 1 | . 1 1 Propulsion . | . . . Utility . | . . . Weapon 1 | 1 1 2 Tool/Special . | . . . Unused Backups 2 | . . 2 Power 1 | . . 1 Propulsion 1 | . . 1 Utility . | . . . Weapon . | . . . Tool/Special . | . . . Average Slot Usage (%) 74 | . 87 64 Engine 10 | . 14 8 Wheel 15 | . 28 5 Hover 5 | . . 9 Device 10 | . 10 11 Processor 8 | . 4 11 Energy Gun 6 | . . 11 Ballistic Gun 16 | . 28 7 Peak Build Rating 15 | 5 8 15 Average Rating 8 | 3 6 10 On Entrance 4 | . 5 8 Avg Prop Armor Cover (%) . | . . . Naked Turns . | . . . Heaviest Build 13 | 8 10 13 Greatest Support 64 | 26 32 64 Greatest Overweight (x) 1 | . . 1 Average Overweight (x) . | . . . Largest Inventory Capacity 5 | 5 5 5 Average Capacity 5 | 5 5 5 Most Carried 5 | 4 5 5 Average Carried 3 | 1 2 3 Final Capacity 5 | 5 5 5 Final Carried 5 | 2 5 5 Class Distribution -------------------- 100% | Mutant Dominant Class ---------------- Mutant | -10/Materials Mutant | -9/Materials Resources | -11 -10 -9 ----------- Run | Yrd Mat Mat Matter Collected 506 | 225 87 194 Remotely . | . . . Salvage Created 544 | . 101 443 Parts 52 | . 12 40 Haulers Intercepted . | . . . Recyclers Shooed . | . . . Parts Field Recycled . | . . . Retrieved Matter . | . . . Parts Self-Destructed . | . . . Prevented . | . . . Parts Restored . | . . . Kills | -11 -10 -9 ------- Run | Yrd Mat Mat Combat Hostiles Destroyed 16 | . 4 12 Guns 15 | . 4 11 AOE 1 | . . 1 Classes Destroyed 6 | . 3 3 Worker 1 | . . 1 Builder 1 | . . 1 Watcher 1 | . 1 . Swarmer 8 | . 3 5 Grunt 5 | . 1 4 Sentry 3 | . . 3 Best Kill Streak 4 | . 4 4 Combat Bots Only 4 | . 4 4 Max Kills in Single Turn 1 | . 1 1 Gunslinging . | . . . Exploded 1 | . . 1 Melee . | . . . Uniques/NPCs Destroyed . | . . . Combat | -11 -10 -9 -------- Run | Yrd Mat Mat Hostile Shots Fired 164 | . 29 135 Missed 44 | . 9 35 Hits 120 | . 20 100 Projectile 120 | . 20 100 Critical Strikes 3 | . . 3 Damage Taken 1374 | . 185 1189 Core 424 | . 21 403 Absorbed by Shields . | . . . Core Remaining (%) 95 | 100 91 . Volleys Fired 74 | . 17 57 Largest 2 | . 2 2 Hottest 101 | . 40 101 Shots Fired 128 | . 34 94 Gun 128 | . 34 94 Cannon . | . . . Launcher . | . . . Special . | . . . Kinetic 82 | . 34 48 Thermal 35 | . . 35 Explosive . | . . . Electromagnetic 11 | . . 11 Robot Hit Streak 7 | . 5 7 Robot Miss Streak 3 | . 3 3 Penetration Max . | . . . Secondary Targets 4 | . 1 3 Max Gunslinging Chain 1 | . 1 1 Shots Hit Robots 80 | . 18 62 Core Hits 37 | . 10 27 Critical Kills . | . . . Critical Parts Destroyed . | . . . Critical Strikes 2 | . . 2 Burn 2 | . . 2 Melee Attacks . | . . . Impact . | . . . Slashing . | . . . Piercing . | . . . Sneak Attacks . | . . . Combat Hostiles . | . . . Follow-up Attacks . | . . . Damage Inflicted 1156 | . 237 919 Guns 1063 | . 237 826 Cannons . | . . . Explosions 90 | . . 90 Melee . | . . . Ramming 3 | . . 3 Kinetic 503 | . 237 266 Thermal 456 | . . 456 Explosive 90 | . . 90 Electromagnetic 104 | . . 104 Impact . | . . . Slashing . | . . . Piercing . | . . . Highest Corruption . | . . . Average Corruption . | . . . Corruption Purged . | . . . Corruption Blocked . | . . . Overload Shots . | . . . Overflow Damage 66 | . . 66 Projectiles . | . . . Explosions 66 | . . 66 Melee . | . . . Knockbacks . | . . . Impact . | . . . Kinetic . | . . . Secondary . | . . . Self-Inflicted Damage 96 | . . 96 Shots 1 | . . 1 Rammed 1 | . . 1 Targets Rammed 1 | . . 1 Kicked . | . . . Crushed . | . . . Highest Temperature 329 | . 12 329 Average Temperature 95 | . 7 99 Received Heat Transfer 462 | . 48 414 Effects 1 | . . 1 Interference 1 | . . 1 Siege Activations . | . . . Martial Activations . | . . . Shielding Activations . | . . . Robots Disrupted . | . . . Combat Hostiles . | . . . Robots Corrupted . | . . . Combat Hostiles . | . . . Parts Fried . | . . . Impact Corruptions . | . . . Robots Melted . | . . . Combat Hostiles . | . . . Parts Melted 1 | . . 1 Heat Transferred 1013 | . . 1013 Parts Sabotaged . | . . . Parts Stolen . | . . . Parts Stripped . | . . . Power Chain Reactions . | . . . Alert | -11 -10 -9 ------- Run | Yrd Mat Mat Maximum Alert Level . | . . . Low Security (%) 100 | 100 100 100 Level 1 . | . . . Level 2 . | . . . Level 3 . | . . . Level 4 . | . . . Level 5 . | . . . High Security . | . . . Max Security . | . . . Peak Influence 163 | . 80 163 Initial 25 | . . 25 Average 65 | . 20 105 Influence Increases 470 | . 107 363 Destroy 0b10 Robot/C 320 | . 80 240 Destroy 0b10 Robot/NC 15 | . 5 10 Destroy Leader 72 | . 22 50 Disable Machine 30 | . . 30 Destroy Structure 33 | . . 33 Influence Decreases 332 | . 47 285 Entered New Map 35 | . . 35 Time Decay 197 | . 47 150 Lost Part 100 | . . 100 Squads Dispatched 2 | . 1 1 Investigation . | . . . Extermination . | . . . Reinforcement 2 | . 1 1 Assault . | . . . Garrison . | . . . Intercept . | . . . Searches Triggered . | . . . Construction Impeded . | . . . Haulers Reinforced . | . . . Active Scanning Responses . | . . . Cargo Convoy Interrupts . | . . . Stealth | -11 -10 -9 --------- Run | Yrd Mat Mat Distress Signals . | . . . Communications Jammed . | . . . Distress Signals . | . . . Times Spotted 38 | . 9 29 Peak Tracking Total 7 | . 5 7 Tactical Retreats 3 | . 1 2 ECM-based Alert Blocks 6 | . 1 5 Traps | -11 -10 -9 ------- Run | Yrd Mat Mat Traps Triggered . | . . . Indirectly . | . . . Trap Hack Attempts . | . . . Triggered . | . . . Disarmed . | . . . Reprogrammed . | . . . Reused . | . . . Traps Extracted . | . . . Installed . | . . . Triggered . | . . . Machines | -11 -10 -9 ---------- Run | Yrd Mat Mat Machines Disabled 2 | . . 2 Max in Single Turn 1 | . . 1 Machines Repaired . | . . . Machines Dismantled . | . . . Machines Sabotaged . | . . . Overloaded Fab Kills . | . . . Hacking | -11 -10 -9 --------- Run | Yrd Mat Mat Machines Accessed 1 | . 1 . Terminals 1 | . 1 . Fabricators . | . . . Repair Stations . | . . . Recycling Units . | . . . Scanalyzers . | . . . Garrison Access . | . . . Total Hacks 2 | . 2 . Successful 2 | . 2 . Failed . | . . . Catastrophic . | . . . Database Lockouts . | . . . Manual . | . . . Terminals 2 | . 2 . Fabricators . | . . . Repair Stations . | . . . Recycling Units . | . . . Scanalyzers . | . . . Garrison Access . | . . . Terminal Hacks 2 | . 2 . Record 1 | . 1 . Emergency Access Points 1 | . 1 . Fabricator Hacks . | . . . Repair Station Hacks . | . . . Recycling Unit Hacks . | . . . Scanalyzer . | . . . Garrison Access Hacks . | . . . Unauthorized Hacks . | . . . Terminals . | . . . Fabricators . | . . . Repair Stations . | . . . Recycling Units . | . . . Scanalyzers . | . . . Garrison Access . | . . . Data Cores Recovered . | . . . Used . | . . . Hacking Detections . | . . . Full Trace Events . | . . . Feedback Events . | . . . Feedback Blocked . | . . . Robot Schematics Acquired . | . . . Robots Built . | . . . Authchips . | . . . Time . | . . . Total Robot Build Rating . | . . . Part Schematics Acquired . | . . . Parts Built . | . . . Authchips . | . . . Time . | . . . Total Part Build Rating . | . . . Part Studies Acquired . | . . . Parts Repaired . | . . . Time . | . . . Parts Recycled . | . . . Recycled Matter . | . . . Retrieved Matter . | . . . Retrieved Components . | . . . Parts Scanalyzed . | . . . Part Schematics Acquired . | . . . Parts Damaged . | . . . Bothacking | -11 -10 -9 ------------ Run | Yrd Mat Mat Used RIF Installer . | . . . Robots Hacked . | . . . Non-combat . | . . . Combat . | . . . Robot Hacks Applied . | . . . Relay Couplers Released . | . . . Fabnet Peak Effective % . | . . . Robots Rewired . | . . . Allies Hacked . | . . . Hacks Repelled . | . . . Allies | -11 -10 -9 -------- Run | Yrd Mat Mat Total Allies . | . . . Largest Group . | . . . Highest-Rated Group . | . . . Highest-Rated Ally . | . . . Total Orders . | . . . Ally Attacks . | . . . Total Damage . | . . . Kills . | . . . Allies Corrupted . | . . . Allies Melted . | . . . Intel | -11 -10 -9 ------- Run | Yrd Mat Mat Active Infowar (turns) 496 | . 181 315 Optics 403 | . 88 315 ECM 371 | . 181 190 Robot Analysis Total . | . . . Derelict Logs Recovered . | . . . Drone Launches . | . . . Drone Recoveries . | . . . Exploration | -11 -10 -9 ------------- Run | Yrd Mat Mat Turns Passed 583 | 44 224 315 Spaces Moved 367 | 38 174 155 Core 7 | 2 . 5 Treads . | . . . Legs . | . . . Wheels 239 | 36 174 29 Hover 121 | . . 121 Flight . | . . . Fastest Speed 50 | 50 90 56 Average Speed 90 | 86 90 90 Slowest Speed 120 | 90 100 120 Overloaded Moves . | . . . Propulsion Burnouts . | . . . Robots Hopped . | . . . Potential Cave-ins . | . . . Cave-ins Triggered . | . . . Exploration Rate (%) 20 | 4 35 23 Regions Visited 2 Branch Regions . Pre-discovered Areas . | . . . Known Exits Taken . | . . . Unknown Exits Taken 2 | 1 1 . Scrap Searched . | . . . Spaces Dug . | . . . Terrain Destroyed 39 | . . 39 Melee . | . . . Projectile . | . . . AOE 39 | . . 39 Terrain Rammed . | . . . Walls Destroyed . | . . . Machines Disabled . | . . . Actions | -11 -10 -9 --------- Run | Yrd Mat Mat Total 501 | 49 208 244 Wait . | . . . Move 365 | 37 173 155 Hop . | . . . Pick Up 26 | 7 8 11 Fast Attach 1 | . . 1 Attach 16 | 5 2 9 Detach . | . . . Swap 10 | . 5 5 Drop 8 | . 3 5 Fire 74 | . 17 57 Melee . | . . . Ram 1 | . . 1 Kick . | . . . Crush . | . . . Escape Stasis . | . . . Rewire . | . . . Trap . | . . . Miscellaneous . | . . . Route ------- -11/Scrapyard -10/Materials -9/Materials History --------- Turn | Location | Event 6 | -11/Scrapyard | Discovered new exit (range 15) 45 | -11/Scrapyard | Entered Materials 265 | -10/Materials | Discovered new exit (range 4) 269 | -10/Materials | Entered another Materials area 269 | -9/Materials | Evolved 2 slots: Propulsion x2 310 | -9/Materials | Build established: Mutant 346 | -9/Materials | Lost 5 parts (1p3n1w) 538 | -9/Materials | Core integrity fell below 50% 563 | -9/Materials | Core integrity fell below 20% 584 | -9/Materials | Destroyed by G-34 Mercenary with Small Laser Last Messages --------------- R-06 Scavenger collects Imp. Ion Engine. Imp. Hover Unit destroyed. U-05 Engineer destroyed. Switching to secondary target: G-34 Mercenary. R-06 Scavenger collects Aluminum Leg. Acquired Lgt. Ion Engine. G-34 Mercenary suffers critical hit (Burn). G-34 Mercenary heat spikes uncontrollably. G-34 Mercenary overheating. G-34 Mercenary suffers critical hit (Burn). G-34 Mercenary overheating. G-34 Mercenary heat short circuits Ion Engine. G-34 Mercenary overheating. Acquired Wheel. Dropped Sml. Laser. Acquired Lgt. Assault Rifle. S-10 Pest destroyed. R-06 Scavenger collects Sml. Laser. R-06 Scavenger collects Structural Scanner. R-06 Scavenger collects Lgt. Assault Rifle. Map ----- +----------------------------------------------------+ | "" """ # #?????????????# #??????????##????? | | "" """ + ############### ####### #????? | | "" """ # [% ?? | | # % % ?? | | ?# ?? | | ?# ###+######/######+########## ##???? | | #####+## # ## #?# #??????####????? | | ????# # " ## ""#?# #??????????????? | | ????# # T ## T"#?# """ #??????????????? | | ????# # " ## ""#?# """ #??????????????? | | ????# + ## #?# """ #??????????????? | | # ! ## #?# #??????????????? | | ### ##= #######+#?########??????????????? | | ??# ########?????# #?###########???????????? | | ??# #?##########?# #?# #???????????? | | ##???# #? ### ### #???????????? | | ?????# #??""" # # """ #???????????? | | ??????# #??""" "" # % # """"" #???????????? | | ???????#+## """ ""[+ %+ =""""" #???????????? | | ??????????# T"*# %#= """"" #???????????? | | ???????????# "" # # "" #???????????? | | ???????????# "" ## ## #???????????? | | ???????????# ## ############???????????? | | ???????????############ #??????????????????????? | | ??????????????????????# #??????????????????????? | | ??????????????????????# @#??????????????????????? | | ??????????????????????# r%#??????????????????????? | | ??????????????????????#rgw#??????????????????????? | | ??????????????????????#=g!#??????????????????????? | | ??????????????????????# =#??????????????????????? | | ?????????????????????? #??????????????????????? | | ????????????????????? #??????????????????????? | | ???????????????????? #??????????????????????? | | ??????????????????? #??????????????????????? | | ?????????????????? t #??????????????????????? | | ?????????????????? ######??????????????????????? | | ????????????????? ????????????????????????????? | | ???????????????? ????????????????????????????? | | ???????????????"" ?????????????????????????????? | | ????????????????" ?????????????????????????????? | | ????????????????" ?????????????????????????????? | | ?????????????????????????????????????????????????? | | ?????????????????????????????????????????????????? | | ?????????????????????????????????????????????????? | | ?????????????????????????????????????????????????? | | ?????????????????????????????????????????????????? | | ?????????????????????????????????????????????????? | | ?????????????????????????????????????????????????? | | ?????????????????????????????????????????????????? | | ?????????????????????????????????????????????????? | +----------------------------------------------------+ Best States ------------- Heat Dissipation 28 Energy Generation 12 Energy Capacity 265 Matter Stores 300 Matter Capacity 300 Sight Range 18 Terrain Scan Density 10 ECM Strength 1 Evasion (%) 53 Item Schematics ----------------- None Robot Schematics ------------------ None Fabricated ------------ Nothing Repaired ---------- Nothing Studied --------- None Alien Tech Used ----------------- None Achievements -------------- None Challenges ------------ None Game ------ Seed AssembledNeutronMonowheel Manual? 0 Play Time 00:07:09 Cumulative 12.4 hours Start 2026.08.06 @ 13:40:11 End 2026.08.06 @ 13:46:54 Sessions 1 Manual Loads 0 Difficulty Rogue Special Mode None Game No. 41 Rogue 41 Adventurer 0 Explorer 0 Win Type - Total 0 Types 0/0/0/0/0/0/0/0/0/0 Lore% 14 Gallery% 19 Achievement% 15 Wizard Run 0 Options --------- Layout 1 ASCII 0 Keyboard 0 Movement Mouse Keybinds 0 Fullscreen 1 Font 24/Smallcaps Map View 50x35 Zoom Use 0% Tactical HUD 0 Map Filters NONE Filters NONE Steam 1 RUN: 20fe050b-afb4-4cad-bb54-625fab0776c8